Workbook

Sheet PV poziomo (hidden)
F1: ="Moc generatora PV : "&G93&" kWp" -> Moc generatora PV : 9,86 kWp | J1: ="Dane klienta : " &L10 -> Dane klienta : Imie i Nazwisko
D10: Data wykonania symulacji : | G10: =TODAY() -> 2023-06-19 | J10: Dane klienta : | L10: Imie i Nazwisko
B12: Strona 1 | C12: Dane wejściowe do symulacji - ułożenie pionowe modułów
D15: Pokrycie dachu | H15: Dachówka | J15: ▼
D17: Rozstaw krokwi | I17: 80 | J17: cm
D22: Rząd modułów PV | G22: Ilość modułów w rzędzie
D24: 1 | G24: 6 | H24: sztuk
D25: 2 | G25: 6 | H25: sztuk
D26: 3 | G26: 0 | H26: sztuk
D27: 4 | G27: 0 | H27: sztuk
D28: 5 | G28: 0 | H28: sztuk
D29: 6 | G29: 0 | H29: sztuk
D30: 7 | G30: 0 | H30: sztuk
D31: 8 | G31: 0 | H31: sztuk
D32: 9 | G32: 0 | H32: sztuk
D33: 10 | G33: 0 | H33: sztuk
D34: 11 | G34: 0 | H34: sztuk
D35: 12 | G35: 0 | H35: sztuk
D42: =Dachówka!D4 -> Klemy środkowe | I42: =Dachówka!D23 -> 48 | J42: sztuk
N44: =(VLOOKUP($D$75,Cennik!F4:K8,5,FALSE))*1000 & " mm" -> 1068 mm
D45: =Dachówka!E4 -> Klemy końcowe | I45: =Dachówka!E23 -> 20 | J45: sztuk
D48: =Dachówka!F4 -> Profil nośny modułu Solo light 4,4m | I48: =Dachówka!F23 -> 22 | J48: sztuk
D51: =Dachówka!G4 -> Łącznik profili Solo5 | I51: =Dachówka!G23 -> 12 | J51: sztuk
Q53: ="L= " &(VLOOKUP($D$75,Cennik!F4:K8,6,FALSE))*1000 & " mm" -> L= 1622 mm
D54: =Dachówka!H4 -> Hak dachowy Rapid2+ Max | I54: =IF(H15="dachówka",Dachówka!H23,"n/d") -> 20 | J54: sztuk
D57: =Dachówka!J4 -> Wkręty do drewna VA8x120mm 50St | I57: =IF(H15="dachówka",Dachówka!J23,"n/d") -> 40 | J57: sztuk
D60: =Dachówka!K4 -> Zaślepka plastikowa Profi05 20St. | I60: =Dachówka!K23 -> 20 | J60: sztuk
D63: =Dachówka!L4 -> Zacisk odgromowy 8 i 10mm | I63: =Dachówka!L23 -> 10 | J63: sztuk
M65: Uwaga!!! Zdjęcie poglądowe!!
D66: =Blachodachowka!L4 -> Zestaw mocujący do pokryć falistych 10 x 200 | I66: =IF(H15="blachodachówka",Blachodachowka!L23,"n/d") -> n/d | J66: sztuk
D69: =Blachodachowka!M4 -> Nasadka KlickTop | I69: =IF(H15="blachodachówka",Blachodachowka!M23,"n/d") -> n/d | J69: sztuk
D74: Zestaw montażowy: | G74: Sumaryczna ilość | I74: Nr zam. | K74: Cena jedn. | O74: Kwota netto
D75: Vitovolt 300 M340 WA black frame | G75: =Dachówka!C26 -> 29 | I75: =Dachówka!D26 -> 7959744 | J75: =Dachówka!E26 -> 700.00 zł | O75: =Dachówka!G26 -> 20,300.00 zł
D76: Inwerter Symo 5.0-3-M | G76: =Dachówka!C27 -> 1 | I76: =Dachówka!D27 ->  | J76: =Dachówka!E27 ->  | O76: =Dachówka!G27 -> 
D77: Klemy środkowe czarne | G77: =Dachówka!C28 -> 48 | I77: =Dachówka!D28 -> 7783978 | J77: =Dachówka!E28 -> 11.40 zł | O77: =Dachówka!G28 -> 547.20 zł
D78: Klemy końcowe czarne | G78: =Dachówka!C29 -> 20 | I78: =Dachówka!D29 -> 7783973 | J78: =Dachówka!E29 -> 11.50 zł | O78: =Dachówka!G29 -> 230.00 zł
D79: =Dachówka!B30 -> Profil nośny modułu Solo light 4,4m | G79: =Dachówka!C30 -> 22 | I79: =Dachówka!D30 -> 7955972 | J79: =Dachówka!E30 -> 189.00 zł | O79: =Dachówka!G30 -> 4,158.00 zł
D80: =Dachówka!B31 -> Łącznik profili Solo5 | G80: =Dachówka!C31 -> 12 | I80: =Dachówka!D31 -> 7561087 | J80: =Dachówka!E31 -> 17.00 zł | O80: =Dachówka!G31 -> 204.00 zł
D81: =IF(H15="dachówka",Dachówka!H4,Blachodachowka!L4) -> Hak dachowy Rapid2+ Max | G81: =IF(D81="Hak dachowy Rapid 2+ 45",Dachówka!C32,Blachodachowka!C32) -> 20 | I81: =IF(D81="Haki dachowe Rapid2+ 45",Dachówka!D32,Blachodachowka!D32) -> 7736574 | J81: =IF(D81="Haki dachowe Rapid2+ 45",Dachówka!E32,Blachodachowka!E32) -> 11.50 zł | O81: =IF(D81="Haki dachowe Rapid2+ 45",Dachówka!G32,Blachodachowka!G32) -> 230.00 zł
D82: =IF(H15="dachówka",Dachówka!J4,Blachodachowka!M4) -> Wkręty do drewna VA8x120mm 50St | G82: =IF(D82="Wkręty do drewna VA8x120mm 50St",Dachówka!C34,Blachodachowka!C33) -> 1 | I82: =IF(D82="Wkręty do drewna VA8x120mm 50St",Dachówka!D34,Blachodachowka!D33) -> 7457992 | J82: =IF(D82="Wkręty do drewna VA8x120mm 50St",Dachówka!E34,Blachodachowka!E33) -> 177.00 zł | O82: =IF(D82="Wkręty do drewna VA8x120mm 50St",Dachówka!G34,Blachodachowka!G33) -> 177.00 zł
D83: =Dachówka!B35 -> Zaślepka plastikowa Profi05 20St. | G83: =Dachówka!C35 -> 1 | I83: =Dachówka!D35 -> 7497891 | J83: =Dachówka!E35 -> 35.00 zł | O83: =Dachówka!G35 -> 35.00 zł
D84: =Dachówka!B36 -> Gniazda MC4 EVO2 4,0-6,0 mm2 (20 sztuk) | G84: =Dachówka!C36 -> 1 | I84: =Dachówka!D36 -> 7998634 | J84: =Dachówka!E36 -> 127.00 zł | O84: =Dachówka!G36 -> 127.00 zł
D85: =Dachówka!B37 -> Wtyczki MC4 EVO2 4,0-6,0 mm2 (20 sztuk) | G85: =Dachówka!C37 -> 1 | I85: =Dachówka!D37 -> 7998635 | J85: =Dachówka!E37 -> 101.00 zł | O85: =Dachówka!G37 -> 101.00 zł
D86: =Dachówka!B38 -> Zacisk odgromowy 8 i 10mm | G86: =Dachówka!C38 -> 10 | I86: =Dachówka!D38 -> 7457988 | J86: =Dachówka!E38 -> 13.00 zł | O86: =Dachówka!G38 -> 130.00 zł | S86: =_xlfn.NUMBERVALUE(INT(Q86)) -> 0
C87: ▼ | D87: Kabel solarny 100 m 6mm2 | G87: 1 | I87: =Dachówka!D39 -> 7374380 | J87: =Dachówka!E39 -> 549.00 zł | O87: =Dachówka!G39 -> 549.00 zł | S87: =_xlfn.NUMBERVALUE(INT(Q87)) -> 0
D88: =Dachówka!B41 -> Osprzęt elektryczny | G88: =Dachówka!C41 -> 1 | J88: 0 | O88: =Dachówka!G41 -> 0.00 zł | S88: =_xlfn.NUMBERVALUE(INT(Q88)) -> 0
D89: =Dachówka!B43 -> Montaż | G89: =Dachówka!C43 -> 1 | J89: 0 | O89: =Dachówka!G43 -> 0.00 zł
K91: SUMA netto | N91: =SUM(O75:P90) -> 
D93: Moc generatora | G93: =(G75*((VLOOKUP(D75,Cennik!F5:I8,4,FALSE))/1000)) -> 9.86 | H93: kWp | K93: Netto/kWp | N93: =+N91/G93 -> 
K94: Zestaw montażowy | N94: =SUM(O77:P88) -> 6,488.20 zł | X94: kW | Y94: 100%
K95: Zestaw/kWp | N95: =N94/G93 -> 658.03 zł | X95: kW | Z95: %
T96: TRUE
AA109: 1
AA110: 0

Sheet Rąbek_kalzip (hidden)
B2: Rozstaw krokwii: | C2: =Dachówka_blachodachówka!I17 -> 805 | D2: cm | E2: Szerokość PV | F2: =VLOOKUP($B$26,Cennik!F5:J8,5,FALSE)+0.02 -> 1.153 | G2: m
B4: Rzędy | C4: Ilość modułów | D4: Klemy środkowe | E4: Klemy końcowe | F4: =Cennik!F59 -> Profil nośny modułu Solo light 4,4m | G4: =Cennik!F52 -> Łącznik profili Solo5 | H4: =B32 -> Hak dachowy Rapid2+ Max | I4: =B33 -> Podkładka uniwesalna 2,5/5 mm pod haki dachowe (100 szt) | J4: =B34 -> Wkręty do drewna VA8x120mm 50St | K4: =B35 -> Zaślepka plastikowa Profi05 20St. | L4: =B38 -> Zacisk odgromowy 8 i 10mm | M4: Zestaw mocujący do pokryć falistych 10 x 200 | N4: Nasadka KlickTop
B5: Rząd 1 | C5: =KalZip_Rąbek!G27 -> 1 | D5: =IF(Rąbek_kalzip!$C5>0,((C5-1)*2),0) -> 0 | E5: =IF(Rąbek_kalzip!$C5>0,4,0) -> 4 | F5: =(CEILING(((Rąbek_kalzip!$C5*$F$2)/4.3),1))*2 -> 2 | G5: =(IF((Rąbek_kalzip!$F5>2),((CEILING((Rąbek_kalzip!$C5*$F$2/4.2),1))-1),0))*2 -> 0 | H5: =IF(C5=0,0,ROUNDUP(C5/($C$2/100),0)*2) -> 2 | I5: =+H5*4 -> 8 | J5: =+H5*2 -> 4 | K5: =+E5 -> 4 | L5: =IF(Rąbek_kalzip!$C5>0,2,0) -> 2 | M5: =IF(C5=0,0,ROUNDUP(C5/($C$2/100),0)*2) -> 2 | N5: =M5 -> 2
B6: Rząd 2 | C6: =KalZip_Rąbek!G28 -> 2 | D6: =IF(Rąbek_kalzip!$C6>0,((C6-1)*2),0) -> 2 | E6: =IF(Rąbek_kalzip!$C6>0,4,0) -> 4 | F6: =(CEILING(((Rąbek_kalzip!$C6*$F$2)/4.3),1))*2 -> 2 | G6: =(IF((Rąbek_kalzip!$F6>2),((CEILING((Rąbek_kalzip!$C6*$F$2/4.2),1))-1),0))*2 -> 0 | H6: 2 | I6: =+H6*4 -> 8 | J6: 4 | K6: 4 | L6: =IF(Rąbek_kalzip!$C6>0,2,0) -> 2 | M6: 2 | N6: 2
B7: Rząd 3 | C7: =KalZip_Rąbek!G29 -> 3 | D7: =IF(Rąbek_kalzip!$C7>0,((C7-1)*2),0) -> 4 | E7: =IF(Rąbek_kalzip!$C7>0,4,0) -> 4 | F7: =(CEILING(((Rąbek_kalzip!$C7*$F$2)/4.3),1))*2 -> 2 | G7: =(IF((Rąbek_kalzip!$F7>2),((CEILING((Rąbek_kalzip!$C7*$F$2/4.2),1))-1),0))*2 -> 0 | H7: 2 | I7: 8 | J7: 4 | K7: 4 | L7: =IF(Rąbek_kalzip!$C7>0,2,0) -> 2 | M7: 2 | N7: 2
B8: Rząd 4 | C8: =KalZip_Rąbek!G30 -> 4 | D8: =IF(Rąbek_kalzip!$C8>0,((C8-1)*2),0) -> 6 | E8: =IF(Rąbek_kalzip!$C8>0,4,0) -> 4 | F8: =(CEILING(((Rąbek_kalzip!$C8*$F$2)/4.3),1))*2 -> 4 | G8: =(IF((Rąbek_kalzip!$F8>2),((CEILING((Rąbek_kalzip!$C8*$F$2/4.2),1))-1),0))*2 -> 2 | H8: 2 | I8: 8 | J8: 4 | K8: 4 | L8: =IF(Rąbek_kalzip!$C8>0,2,0) -> 2 | M8: 2 | N8: 2
B9: Rząd 5 | C9: =KalZip_Rąbek!G31 -> 5 | D9: =IF(Rąbek_kalzip!$C9>0,((C9-1)*2),0) -> 8 | E9: =IF(Rąbek_kalzip!$C9>0,4,0) -> 4 | F9: =(CEILING(((Rąbek_kalzip!$C9*$F$2)/4.3),1))*2 -> 4 | G9: =(IF((Rąbek_kalzip!$F9>2),((CEILING((Rąbek_kalzip!$C9*$F$2/4.2),1))-1),0))*2 -> 2 | H9: 2 | I9: 8 | J9: 4 | K9: 4 | L9: =IF(Rąbek_kalzip!$C9>0,2,0) -> 2 | M9: 2 | N9: 2
B10: Rząd 6 | C10: =KalZip_Rąbek!G32 -> 0 | D10: =IF(Rąbek_kalzip!$C10>0,((C10-1)*2),0) -> 0 | E10: =IF(Rąbek_kalzip!$C10>0,4,0) -> 0 | F10: =(CEILING(((Rąbek_kalzip!$C10*$F$2)/4.3),1))*2 -> 0 | G10: =(IF((Rąbek_kalzip!$F10>2),((CEILING((Rąbek_kalzip!$C10*$F$2/4.2),1))-1),0))*2 -> 0 | H10: 0 | I10: 0 | J10: 0 | K10: 0 | L10: =IF(Rąbek_kalzip!$C10>0,2,0) -> 0 | M10: 0 | N10: 0
B11: Rząd 7 | C11: =KalZip_Rąbek!G33 -> 0 | D11: =IF(Rąbek_kalzip!$C11>0,((C11-1)*2),0) -> 0 | E11: =IF(Rąbek_kalzip!$C11>0,4,0) -> 0 | F11: =(CEILING(((Rąbek_kalzip!$C11*$F$2)/4.3),1))*2 -> 0 | G11: =(IF((Rąbek_kalzip!$F11>2),((CEILING((Rąbek_kalzip!$C11*$F$2/4.2),1))-1),0))*2 -> 0 | H11: 0 | I11: 0 | J11: 0 | K11: 0 | L11: =IF(Rąbek_kalzip!$C11>0,2,0) -> 0 | M11: 0 | N11: 0
B12: Rząd 8 | C12: =KalZip_Rąbek!G34 -> 0 | D12: =IF(Rąbek_kalzip!$C12>0,((C12-1)*2),0) -> 0 | E12: =IF(Rąbek_kalzip!$C12>0,4,0) -> 0 | F12: =(CEILING(((Rąbek_kalzip!$C12*$F$2)/4.3),1))*2 -> 0 | G12: =(IF((Rąbek_kalzip!$F12>2),((CEILING((Rąbek_kalzip!$C12*$F$2/4.2),1))-1),0))*2 -> 0 | H12: 0 | I12: 0 | J12: 0 | K12: 0 | L12: =IF(Rąbek_kalzip!$C12>0,2,0) -> 0 | M12: 0 | N12: 0
B13: Rząd 9 | C13: =KalZip_Rąbek!G35 -> 0 | D13: =IF(Rąbek_kalzip!$C13>0,((C13-1)*2),0) -> 0 | E13: =IF(Rąbek_kalzip!$C13>0,4,0) -> 0 | F13: =(CEILING(((Rąbek_kalzip!$C13*$F$2)/4.3),1))*2 -> 0 | G13: =(IF((Rąbek_kalzip!$F13>2),((CEILING((Rąbek_kalzip!$C13*$F$2/4.2),1))-1),0))*2 -> 0 | H13: 0 | I13: 0 | J13: 0 | K13: 0 | L13: =IF(Rąbek_kalzip!$C13>0,2,0) -> 0 | M13: 0 | N13: 0
B14: Rząd 10 | C14: =KalZip_Rąbek!G36 -> 0 | D14: =IF(Rąbek_kalzip!$C14>0,((C14-1)*2),0) -> 0 | E14: =IF(Rąbek_kalzip!$C14>0,4,0) -> 0 | F14: =(CEILING(((Rąbek_kalzip!$C14*$F$2)/4.3),1))*2 -> 0 | G14: =(IF((Rąbek_kalzip!$F14>2),((CEILING((Rąbek_kalzip!$C14*$F$2/4.2),1))-1),0))*2 -> 0 | H14: 0 | I14: 0 | J14: 0 | K14: 0 | L14: =IF(Rąbek_kalzip!$C14>0,2,0) -> 0 | M14: 0 | N14: 0
B15: Rząd 11 | C15: =KalZip_Rąbek!G37 -> 0 | D15: =IF(Rąbek_kalzip!$C15>0,((C15-1)*2),0) -> 0 | E15: =IF(Rąbek_kalzip!$C15>0,4,0) -> 0 | F15: =(CEILING(((Rąbek_kalzip!$C15*$F$2)/4.3),1))*2 -> 0 | G15: =(IF((Rąbek_kalzip!$F15>2),((CEILING((Rąbek_kalzip!$C15*$F$2/4.2),1))-1),0))*2 -> 0 | H15: 0 | I15: 0 | J15: 0 | K15: 0 | L15: =IF(Rąbek_kalzip!$C15>0,2,0) -> 0 | M15: 0 | N15: 0
B16: Rząd 12 | C16: =KalZip_Rąbek!G38 -> 0 | D16: =IF(Rąbek_kalzip!$C16>0,((C16-1)*2),0) -> 0 | E16: =IF(Rąbek_kalzip!$C16>0,4,0) -> 0 | F16: =(CEILING(((Rąbek_kalzip!$C16*$F$2)/4.3),1))*2 -> 0 | G16: =(IF((Rąbek_kalzip!$F16>2),((CEILING((Rąbek_kalzip!$C16*$F$2/4.2),1))-1),0))*2 -> 0 | H16: 0 | I16: 0 | J16: 0 | K16: 0 | L16: =IF(Rąbek_kalzip!$C16>0,2,0) -> 0 | M16: 0 | N16: 0
B17: Rząd 13 | C17: =KalZip_Rąbek!G39 -> 0 | D17: =IF(Rąbek_kalzip!$C17>0,((C17-1)*2),0) -> 0 | E17: =IF(Rąbek_kalzip!$C17>0,4,0) -> 0 | F17: =(CEILING(((Rąbek_kalzip!$C17*$F$2)/4.3),1))*2 -> 0 | G17: =(IF((Rąbek_kalzip!$F17>2),((CEILING((Rąbek_kalzip!$C17*$F$2/4.2),1))-1),0))*2 -> 0 | H17: 0 | I17: 0 | J17: 0 | K17: 0 | L17: =IF(Rąbek_kalzip!$C17>0,2,0) -> 0 | M17: 0 | N17: 0
B18: Rząd 14 | C18: =KalZip_Rąbek!G40 -> 0 | D18: =IF(Rąbek_kalzip!$C18>0,((C18-1)*2),0) -> 0 | E18: =IF(Rąbek_kalzip!$C18>0,4,0) -> 0 | F18: =(CEILING(((Rąbek_kalzip!$C18*$F$2)/4.3),1))*2 -> 0 | G18: =(IF((Rąbek_kalzip!$F18>2),((CEILING((Rąbek_kalzip!$C18*$F$2/4.2),1))-1),0))*2 -> 0 | H18: 0 | I18: 0 | J18: 0 | K18: 0 | L18: =IF(Rąbek_kalzip!$C18>0,2,0) -> 0 | M18: 0 | N18: 0
B19: Rząd 15 | C19: =KalZip_Rąbek!G41 -> 0 | D19: =IF(Rąbek_kalzip!$C19>0,((C19-1)*2),0) -> 0 | E19: =IF(Rąbek_kalzip!$C19>0,4,0) -> 0 | F19: =(CEILING(((Rąbek_kalzip!$C19*$F$2)/4.3),1))*2 -> 0 | G19: =(IF((Rąbek_kalzip!$F19>2),((CEILING((Rąbek_kalzip!$C19*$F$2/4.2),1))-1),0))*2 -> 0 | H19: 0 | I19: 0 | J19: 0 | K19: 0 | L19: =IF(Rąbek_kalzip!$C19>0,2,0) -> 0 | M19: 0 | N19: 0
B20: Rząd 16 | C20: =KalZip_Rąbek!G42 -> 0 | D20: =IF(Rąbek_kalzip!$C20>0,((C20-1)*2),0) -> 0 | E20: =IF(Rąbek_kalzip!$C20>0,4,0) -> 0 | F20: =(CEILING(((Rąbek_kalzip!$C20*$F$2)/4.3),1))*2 -> 0 | G20: =(IF((Rąbek_kalzip!$F20>2),((CEILING((Rąbek_kalzip!$C20*$F$2/4.2),1))-1),0))*2 -> 0 | H20: 0 | I20: 0 | J20: 0 | K20: 0 | L20: =IF(Rąbek_kalzip!$C20>0,2,0) -> 0 | M20: 0 | N20: 0
B21: Rząd 17 | C21: =KalZip_Rąbek!G43 -> 0 | D21: =IF(Rąbek_kalzip!$C21>0,((C21-1)*2),0) -> 0 | E21: =IF(Rąbek_kalzip!$C21>0,4,0) -> 0 | F21: =(CEILING(((Rąbek_kalzip!$C21*$F$2)/4.3),1))*2 -> 0 | G21: =(IF((Rąbek_kalzip!$F21>2),((CEILING((Rąbek_kalzip!$C21*$F$2/4.2),1))-1),0))*2 -> 0 | H21: 0 | I21: 0 | J21: 0 | K21: 0 | L21: =IF(Rąbek_kalzip!$C21>0,2,0) -> 0 | M21: 0 | N21: 0
B22: Rząd 18 | C22: =KalZip_Rąbek!G44 -> 0 | D22: =IF(Rąbek_kalzip!$C22>0,((C22-1)*2),0) -> 0 | E22: =IF(Rąbek_kalzip!$C22>0,4,0) -> 0 | F22: =(CEILING(((Rąbek_kalzip!$C22*$F$2)/4.3),1))*2 -> 0 | G22: =(IF((Rąbek_kalzip!$F22>2),((CEILING((Rąbek_kalzip!$C22*$F$2/4.2),1))-1),0))*2 -> 0 | H22: 0 | I22: 0 | J22: 0 | K22: 0 | L22: =IF(Rąbek_kalzip!$C22>0,2,0) -> 0 | M22: 0 | N22: 0
B23: SUMA | C23: =SUM(C5:C22) -> 15 | D23: 20 | E23: 20 | F23: 14 | G23: 4 | H23: 10 | I23: 40 | J23: 20 | K23: 20 | L23: 10 | M23: 10 | N23: 10
B25: Zestaw montażowy: | C25: Sumaryczna ilość | D25: Nr zam. | E25: Cena jedn. | F25: Rabat | G25: Kwota netto
B26: =Dachówka_blachodachówka!D91 -> Vitovolt 300 M405 AK Standard | C26: =+C23 -> 15 | D26: =VLOOKUP($B$26,PV,2,FALSE) -> 7959744 | E26: =VLOOKUP($B$26,PV,3,FALSE) -> 700.00 zł | F26: =Dachówka_blachodachówka!M91 -> 0% | G26: =(E26*C26)*(1-F26) -> 10,500.00 zł
B27: =Dachówka_blachodachówka!D92 -> ***FRONIUS*** | C27: 1 | D27: =VLOOKUP($B$27,Cennik!F12:H21,2,FALSE) ->  | E27: =VLOOKUP($B$27,Cennik!F12:H21,3,FALSE) ->  | F27: =Dachówka_blachodachówka!M92 -> 0%
B28: =Dachówka_blachodachówka!D93 -> Klemy środkowe czarne | C28: =D23 -> 20 | D28: =VLOOKUP($B$28,Cennik!F29:H30,2,FALSE) -> 7783978 | E28: =VLOOKUP($B$28,Cennik!F29:H30,3,FALSE) -> 11.40 zł | F28: =$G$45 -> 0% | G28: 228.00 zł
B29: =Dachówka_blachodachówka!D94 -> Klemy końcowe czarne | C29: =E23 -> 20 | D29: =VLOOKUP($B$29,Cennik!F31:H32,2,FALSE) -> 7783973 | E29: =VLOOKUP($B$29,Cennik!F31:H32,3,FALSE) -> 11.50 zł | F29: 0% | G29: 230.00 zł
B30: =+F4 -> Profil nośny modułu Solo light 4,4m | C30: =F23 -> 14 | D30: =VLOOKUP($B30,Cennik,2,FALSE) -> 7955972 | E30: =VLOOKUP($B30,Cennik,3,FALSE) -> 189.00 zł | F30: 0% | G30: 2,646.00 zł
B31: =G4 -> Łącznik profili Solo5 | C31: =G23 -> 4 | D31: =VLOOKUP(B31,Cennik,2,FALSE) -> 7561087 | E31: =VLOOKUP($B31,Cennik,3,FALSE) -> 17.00 zł | F31: 0% | G31: 68.00 zł
B32: =Dachówka_blachodachówka!D60 -> Hak dachowy Rapid2+ Max | C32: =H23 -> 10 | D32: =VLOOKUP($B$32,Cennik,2,FALSE) -> 7457973 | E32: =VLOOKUP($B$32,Cennik,3,FALSE) -> 97.00 zł | F32: 0% | G32: 970.00 zł
B33: =Dachówka_blachodachówka!D77 -> Podkładka uniwesalna 2,5/5 mm pod haki dachowe (100 szt) | C33: =IF(B33="Podkładka VAMax Rapid Max 25 szt.",ROUNDUP(I23/25,0),ROUNDUP((I23/50),0)) -> 1
B34: =Cennik!F42 -> Wkręty do drewna VA8x120mm 50St | C34: =ROUNDUP((J23/50),0) -> 1 | D34: =VLOOKUP($B$34,Cennik,2,FALSE) -> 7457992 | E34: =VLOOKUP($B$34,Cennik,3,FALSE) -> 177.00 zł | F34: 0% | G34: 177.00 zł
B35: =Cennik!F45 -> Zaślepka plastikowa Profi05 20St. | C35: =ROUNDUP((K23/20),0) -> 1 | D35: =VLOOKUP(B35,Cennik,2,FALSE) -> 7497891 | E35: =VLOOKUP(B35,Cennik,3,FALSE) -> 35.00 zł | F35: 0% | G35: 35.00 zł
B36: =Cennik!F49 -> Gniazda MC4 EVO2 4,0-6,0 mm2 (20 sztuk) | C36: 1 | D36: =VLOOKUP(B36,Cennik,2,FALSE) -> 7998634 | E36: =VLOOKUP(B36,Cennik,3,FALSE) -> 127.00 zł | F36: 0% | G36: 127.00 zł
B37: =Cennik!F51 -> Wtyczki MC4 EVO2 4,0-6,0 mm2 (20 sztuk) | C37: 1 | D37: =VLOOKUP(B37,Cennik,2,FALSE) -> 7998635 | E37: =VLOOKUP(B37,Cennik,3,FALSE) -> 101.00 zł | F37: 0% | G37: 101.00 zł
B38: =Cennik!F40 -> Zacisk odgromowy 8 i 10mm | C38: =L23 -> 10 | D38: =VLOOKUP(B38,Cennik,2,FALSE) -> 7457988 | E38: =VLOOKUP(B38,Cennik,3,FALSE) -> 13.00 zł | F38: 0% | G38: 130.00 zł
B39: =Dachówka_blachodachówka!D105 -> Kabel solarny 100 m 6mm2 | C39: =Dachówka_blachodachówka!G105 -> 1 | D39: =VLOOKUP($B$39,Cennik!F23:H26,2,FALSE) -> 7374380 | E39: =VLOOKUP($B$39,Cennik!F23:H26,3,FALSE) -> 549.00 zł | F39: =Dachówka_blachodachówka!M105 -> 0% | G39: 549.00 zł
B40: =Dachówka_blachodachówka!#REF! ->  | C40: =Dachówka_blachodachówka!#REF! ->  | D40: =_xlfn.IFNA(VLOOKUP($B$40,Cennik!$F$10:$H$59,2,FALSE),"") ->  | E40: =_xlfn.IFNA(VLOOKUP($B$40,Cennik!$F$10:$H$59,3,FALSE),"") ->  | F40: =Dachówka_blachodachówka!#REF! ->  | G40: =IF(E40="","",((E40*C40)*(1-F40))) -> 
B41: Osprzęt elektryczny | C41: 1 | E41: =Dachówka_blachodachówka!J108 -> 0.00 zł | F41: =Dachówka_blachodachówka!M108 -> 0% | G41: 0.00 zł
B42: Montaż | C42: 1 | E42: =Dachówka_blachodachówka!J110 -> 0.00 zł | F42: =Dachówka_blachodachówka!M110 -> 0% | G42: 0.00 zł
E44: SUMA | G44: =SUM(G26:G42) -> 
B45: Moc generatora | C45: =(C26*((VLOOKUP(B26,Cennik!F5:I8,4,FALSE))/1000)) -> 6.08 | D45: kWp | E45: Rabat | G45: =Dachówka_blachodachówka!P115 -> 0%
E46: Netto/kWp | G46: =+G44/C45 ->  | H46: =+G46*1.23 -> 
E47: Zestaw montażowy | G47: =SUM(G28:G41) -> 
E48: Zestaw/kWp | G48: =G47/C45 -> 
B51: Dachówka
B52: Blachodachówka

Sheet KalZip_Rąbek (hidden)
F1: ="Moc generatora PV : "&G118&" kWp" ->  | J1: ="Dane klienta : " &L10 -> Dane klienta : Imie i Nazwisko | Q1: =TODAY() -> 2023-06-19
D10: Data wykonania symulacji : | G10: =TODAY() -> 2023-06-19 | J10: Dane klienta : | L10: Imie i Nazwisko
B12: Strona 1 | C12: Dane wejściowe do symulacji - ułożenie pionowe modułów
T14: KalZip
D15: Pokrycie dachu | H15: Rąbek | J15: ▼ | T15: Rąbek
D23: KalZip | K23: Rąbek
D25: Rząd modułów PV | G25: Ilość modułów w rzędzie
D27: 1 | G27: 1 | H27: sztuk
D28: 2 | G28: 2 | H28: sztuk
D29: 3 | G29: 3 | H29: sztuk
D30: 4 | G30: 4 | H30: sztuk
D31: 5 | G31: 5 | H31: sztuk
D32: 6 | G32: 0 | H32: sztuk
D33: 7 | G33: 0 | H33: sztuk
D34: 8 | G34: 0 | H34: sztuk
D35: 9 | G35: 0 | H35: sztuk
D36: 10 | G36: 0 | H36: sztuk
D37: 11 | G37: 0 | H37: sztuk
D38: 12 | G38: 0 | H38: sztuk
D39: 13 | G39: 0 | H39: sztuk
D40: 14 | G40: 0 | H40: sztuk
D41: 15 | G41: 0 | H41: sztuk
D42: 16 | G42: 0 | H42: sztuk
D43: 17 | G43: 0 | H43: sztuk
D44: 18 | G44: 0 | H44: sztuk
D51: Klemy środkowe srebrne | I51: =Dachówka!D23 -> 48 | J51: sztuk
D54: Klemy końcowe srebrne | I54: =Dachówka!E23 -> 20 | J54: sztuk
N55: =(VLOOKUP($D$94,Cennik!F4:K8,5,FALSE))*1000 & " mm" -> 
D57: =Dachówka!F4 -> Profil nośny modułu Solo light 4,4m | I57: =Dachówka!F23 -> 22 | J57: sztuk
D60: =Dachówka!G4 -> Łącznik profili Solo5 | I60: =Dachówka!G23 -> 12 | J60: sztuk
D63: Hak dachowy Rapid2+ Max | I63: =IF(H15="dachówka",Dachówka!H23,"n/d") -> n/d | J63: sztuk
D64: =IF(D63="Hak dachowy Rapid2+ Max","dla zwiększonego obciążenia śniegiem","") -> dla zwiększonego obciążenia śniegiem | Q64: ="L= " &(VLOOKUP($D$94,Cennik!F4:K8,6,FALSE))*1000 & " mm" -> 
D66: =Dachówka!J4 -> Wkręty do drewna VA8x120mm 50St | I66: =IF(H15="dachówka",Dachówka!J23,"n/d") -> n/d | J66: sztuk
D69: =Dachówka!K4 -> Zaślepka plastikowa Profi05 20St. | I69: =Dachówka!K23 -> 20 | J69: sztuk
D72: =Dachówka!L4 -> Zacisk odgromowy 8 i 10mm | I72: =Dachówka!L23 -> 10 | J72: sztuk
D75: Zest. mocujący do pokryć falistych 10x200 | I75: =IF(H15="blachodachówka",Blachodachowka!L23,"n/d") -> n/d | J75: sztuk
M76: Uwaga!!! Zdjęcie poglądowe!!
D78: =Blachodachowka!M4 -> Nasadka KlickTop | I78: =IF(H15="blachodachówka",Blachodachowka!M23,"n/d") -> n/d | J78: sztuk
D81: Podkładka EcoS Rapid Standard 50 szt. | I81: =IF(H15="dachówka",Dachówka!I23,"n/d") -> n/d | J81: sztuk
D82: przyjęto 4 podkładki na hak
D84: Kabel solarny 100 m 6mm2 | I84: =G106 -> 1 | J84: sztuk
F88: ="Moc generatora PV : "&G118&" kWp" ->  | J88: ="Dane klienta : " &L10 -> Dane klienta : Imie i Nazwisko
Q90: =TODAY() -> 2023-06-19
B92: Strona 2 | C92: Zestawienie elementów
D93: Zestaw montażowy: | G93: Sumaryczna ilość | I93: Nr zam.
D94: Vitovolt 300 M310 WB | G94: =Dachówka!C26 -> 29 | I94: =VLOOKUP(D94,Cennik,2,FALSE) ->  | J94: =VLOOKUP(D94,Cennik,3,FALSE) -> 
D95: Inwerter Symo 4.5-3-M | G95: =Dachówka!C27 -> 1 | K95: Cena jedn. | O95: Kwota netto
D96: =D51 -> Klemy środkowe srebrne | G96: =Dachówka!C28 -> 48 | I96: 7783976 | J96: 7.00 zł | O96: =(G94*J94)*(1-M96) -> 
D97: =D54 -> Klemy końcowe srebrne | G97: =Dachówka!C29 -> 20 | I97: 7783970 | J97: 7.00 zł
D98: =D57 -> Profil nośny modułu Solo light 4,4m | G98: =Dachówka!C30 -> 22 | I98: 7955972 | J98: 189.00 zł | O98: 336.00 zł
D99: =D60 -> Łącznik profili Solo5 | G99: =Dachówka!C31 -> 12 | I99: 7561087 | J99: 17.00 zł | O99: 140.00 zł
D100: =IF(H15="dachówka",D63,D75) -> Zest. mocujący do pokryć falistych 10x200 | G100: =IF(D100="Hak dachowy Rapid 2+ 45",Dachówka!C32,Blachodachowka!C32) -> 20 | I100: 7736574 | J100: 11.50 zł | O100: 4,158.00 zł
D101: =IF(H15="dachówka",D66,D78) -> Nasadka KlickTop | G101: =IF(D101="Wkręty do drewna VA8x120mm 50St",Dachówka!C34,Blachodachowka!C33) -> 20 | I101: 7164821 | J101: 15.20 zł | O101: 204.00 zł
D102: =D69 -> Zaślepka plastikowa Profi05 20St. | G102: =Dachówka!C35 -> 1 | I102: 7497891 | J102: 35.00 zł | O102: 230.00 zł
D103: =Dachówka!B36 -> Gniazda MC4 EVO2 4,0-6,0 mm2 (20 sztuk) | G103: =Dachówka!C36 -> 1 | I103: 7998634 | J103: 127.00 zł | O103: 304.00 zł
D104: =Dachówka!B37 -> Wtyczki MC4 EVO2 4,0-6,0 mm2 (20 sztuk) | G104: =Dachówka!C37 -> 1 | I104: 7998635 | J104: 101.00 zł | O104: 35.00 zł
D105: =D72 -> Zacisk odgromowy 8 i 10mm | G105: =Dachówka!C38 -> 10 | I105: 7457988 | J105: 13.00 zł | O105: 127.00 zł
D106: =D84 -> Kabel solarny 100 m 6mm2 | G106: 1 | I106: 7374380 | J106: 549.00 zł | O106: 101.00 zł
D107: =IF(D95=Cennik!F12,Cennik!F54,IF(D95=Cennik!F13,Cennik!F54,IF(D95=Cennik!#REF!,Cennik!F54,IF(D95=Cennik!#REF!,Cennik!F54,IF(D95=Cennik!#REF!,Cennik!F54,IF(D95=Cennik!#REF!,Cennik!F54,IF(D95=Cennik!#REF!,Cennik!F54," "))))))) ->  | G107: 1 | I107: =_xlfn.IFNA(VLOOKUP(D107,Cennik,2,FALSE),"") ->  | J107: =_xlfn.IFNA(VLOOKUP(D107,Cennik,3,FALSE),"") ->  | O107: 130.00 zł | S107: =_xlfn.NUMBERVALUE(INT(Q107)) -> 0
D108: =IF(H15="dachówka",D81,"") ->  | G108: =IF(H15="dachówka",Dachówka!C33,"") ->  | I108: =_xlfn.IFNA(VLOOKUP(D108,Cennik,2,FALSE),"") ->  | J108: =_xlfn.IFNA(VLOOKUP(D108,Cennik,3,FALSE),"") ->  | O108: 549.00 zł | S108: =_xlfn.NUMBERVALUE(INT(Q108)) -> 0
D109: =Dachówka!B41 -> Osprzęt elektryczny | G109: =Dachówka!C41 -> 1 | J109: 0 | O109: =IFERROR((G107*J107)*(1-M109),"") -> 
D110: =Dachówka!B43 -> Montaż | G110: =Dachówka!C43 -> 1 | J110: 0 | O110: =IFERROR((G108*J108)*(1-M110),"") -> 
D111: Dodatkowe elementy montażowe : | O111: =IFERROR((G109*J109)*(1-M111),"") -> 0.00 zł | S111: =_xlfn.NUMBERVALUE(INT(Q111)) -> 0
I112: =_xlfn.IFNA(VLOOKUP(D112,Cennik,2,FALSE),"") ->  | J112: =_xlfn.IFNA(VLOOKUP(D112,Cennik,3,FALSE),"") ->  | O112: =IFERROR((G110*J110)*(1-M112),"") -> 0.00 zł
I113: =_xlfn.IFNA(VLOOKUP(D113,Cennik,2,FALSE),"") ->  | J113: =_xlfn.IFNA(VLOOKUP(D113,Cennik,3,FALSE),"") -> 
O114: =IFERROR((G112*J112)*(1-M114),"") -> 
O115: =IFERROR((G113*J113)*(1-M115),"") -> 
D118: Moc generatora PV | G118: =(G94*((VLOOKUP(D94,Cennik!F5:I8,4,FALSE))/1000)) ->  | H118: kWp | K118: SUMA netto | O118: =SUM(O96:P111,O114:P115) -> 
D119: Moc falownika AC | G119: =VLOOKUP(D95,Cennik!F12:I21,4,FALSE) ->  | H119: kW | K119: SUMA netto z montażem | O119: =+O118+O112 ->  | P119: =+#REF!+J110 -> 
K120: Netto/kWp | N120: =+O119/G118 -> 
K121: Zestaw montażowy | N121: =SUM(O98:P111) -> 6,314.00 zł | X121: kW | Y121: 100%
K122: Zestaw/kWp | N122: =N121/G118 ->  | X122: kW | Z122: %
J125: Arkusz kalkulacyjny nie może zastąpić fachowego projektu instalacji fotowoltaicznej wykonanego przez projektanta z odpowiednimi uprawnieniami. Autor nie ponosi odpowiedzialności za błędy ukryte w arkuszu, oraz za wszelkie negatywne skutki i straty wynikające z jego użytkowania.
B127: Partner Viessmann
T134: TRUE
AA139: 1
AA140: 0

Sheet Dachówka_blachodachówka
F1: ="Moc generatora PV : "&G119&" kWp" -> Moc generatora PV : 11,745 kWp | J1: ="Dane klienta : " &L10 -> Dane klienta : jak | Q1: =TODAY() -> 2023-06-19
D10: Data wykonania symulacji : | G10: =TODAY() -> 2023-06-19 | J10: Dane klienta : | L10: jak
B12: Strona 1 | C12: Dane wejściowe do symulacji - ułożenie pionowe modułów
D15: Pokrycie dachu | H15: Blachodachówka | J15: ▼
D17: Rozstaw krokwi | I17: 805 | J17: cm
D22: Rząd modułów PV | G22: Ilość modułów w rzędzie
D24: 1 | G24: 8 | H24: sztuk
D25: 2 | G25: 6 | H25: sztuk
D26: 3 | G26: 0 | H26: sztuk
D27: 4 | G27: 5 | H27: sztuk
D28: 5 | G28: 5 | H28: sztuk
D29: 6 | G29: 5 | H29: sztuk
D30: 7 | G30: 0 | H30: sztuk
D31: 8 | G31: 0 | H31: sztuk
D32: 9 | G32: 0 | H32: sztuk
D33: 10 | G33: 0 | H33: sztuk
D34: 11 | G34: 0 | H34: sztuk
D35: 12 | G35: 0 | H35: sztuk
D36: 13 | G36: 0 | H36: sztuk
D37: 14 | G37: 0 | H37: sztuk
D38: 15 | G38: 0 | H38: sztuk
D39: 16 | G39: 0 | H39: sztuk
D40: 17 | G40: 0 | H40: sztuk
D41: 18 | G41: 0 | H41: sztuk
D48: Klemy środkowe czarne | I48: =Dachówka!D23 -> 48 | J48: sztuk
N50: =(VLOOKUP($D$91,Cennik!F4:K8,5,FALSE))*1000 & " mm" -> 1133 mm
D51: Klemy końcowe czarne | I51: =Dachówka!E23 -> 20 | J51: sztuk
D54: =Dachówka!F4 -> Profil nośny modułu Solo light 4,4m | I54: =Dachówka!F23 -> 22 | J54: sztuk
D57: =Dachówka!G4 -> Łącznik profili Solo5 | I57: =Dachówka!G23 -> 12 | J57: sztuk
Q59: ="L= " &(VLOOKUP($D$91,Cennik!F4:K8,6,FALSE))*1000 & " mm" -> L= 1708 mm
D60: Hak dachowy Rapid2+ Max | I60: =IF(H15="dachówka",Dachówka!H23,"n/d") -> n/d | J60: sztuk
D61: =IF(D60="Hak dachowy Rapid2+ Max","dla zwiększonego obciążenia śniegiem","") -> dla zwiększonego obciążenia śniegiem
D63: =Dachówka!J4 -> Wkręty do drewna VA8x120mm 50St | I63: =IF(H15="dachówka",Dachówka!J23,"n/d") -> n/d | J63: sztuk
D66: =Dachówka!K4 -> Zaślepka plastikowa Profi05 20St. | I66: =Dachówka!K23 -> 20 | J66: sztuk
D69: =Dachówka!L4 -> Zacisk odgromowy 8 i 10mm | I69: =Dachówka!L23 -> 10 | J69: sztuk
M71: Uwaga!!! Zdjęcie poglądowe!!
D72: Zest. mocujący do pokryć falistych 10x200 | I72: =IF(H15="blachodachówka",Blachodachowka!L23,"n/d") -> 20 | J72: sztuk
D75: =Blachodachowka!M4 -> Nasadka KlickTop | I75: =IF(H15="blachodachówka",Blachodachowka!M23,"n/d") -> 20 | J75: sztuk
D77: Podkładka uniwesalna 2,5/5 mm pod haki dachowe (100 szt)
I78: =IF(H15="dachówka",Dachówka!I23,"n/d") -> n/d | J78: sztuk
D79: przyjęto 4 podkładki na hak
D81: Kabel solarny 100 m 6mm2 | I81: =G105 -> 1 | J81: sztuk
F85: ="Moc generatora PV : "&G119&" kWp" -> Moc generatora PV : 11,745 kWp | J85: ="Dane klienta : " &L10 -> Dane klienta : jak | Q85: =TODAY() -> 2023-06-19
B87: Strona 2 | C87: Zestawienie elementów
D90: Zestaw montażowy: | G90: Sumaryczna ilość | I90: Nr zam. | K90: Cena jedn. | M90: Rabat | O90: Kwota netto
D91: Vitovolt 300 M405 AK Standard | G91: =Dachówka!C26 -> 29 | I91: =VLOOKUP(D91,Cennik,2,FALSE) -> 7959744 | J91: =VLOOKUP(D91,Cennik,3,FALSE) -> 700.00 zł | O91: =(G91*J91)*(1-M91) -> 20,300.00 zł
D92: ***FRONIUS*** | G92: =Dachówka!C27 -> 1 | I92: 0 | J92: 0.00 zł | O92: 0.00 zł
D93: =D48 -> Klemy środkowe czarne | G93: =Dachówka!C28 -> 48 | I93: 7783978 | J93: =VLOOKUP(D93,Cennik,3,FALSE) -> 11.40 zł | O93: 547.20 zł
D94: =D51 -> Klemy końcowe czarne | G94: =Dachówka!C29 -> 20 | I94: 7783973 | J94: 11.50 zł | O94: 230.00 zł
D95: =D54 -> Profil nośny modułu Solo light 4,4m | G95: =Dachówka!C30 -> 22 | I95: 7955972 | J95: 189.00 zł | O95: 4,158.00 zł
D96: =D57 -> Łącznik profili Solo5 | G96: =Dachówka!C31 -> 12 | I96: 7561087 | J96: 17.00 zł | O96: 204.00 zł
D97: =IF(H15="dachówka",D60,D72) -> Zest. mocujący do pokryć falistych 10x200 | G97: =IF(D97="Hak dachowy Rapid 2+ 45",Dachówka!C32,Blachodachowka!C32) -> 20 | I97: 7736574 | J97: 11.50 zł | O97: 230.00 zł
D98: =IF(H15="dachówka",D63,D75) -> Nasadka KlickTop | G98: =IF(D98="Wkręty do drewna VA8x120mm 50St",Dachówka!C34,Blachodachowka!C33) -> 20 | I98: 7164821 | J98: 15.20 zł | O98: 304.00 zł
D99: =D66 -> Zaślepka plastikowa Profi05 20St. | G99: =Dachówka!C35 -> 1 | I99: 7497891 | J99: 35.00 zł | O99: 35.00 zł
D100: Gniazda MC4 4,0-6,0 mm2 (20 sztuk) | G100: =Dachówka!C36 -> 1 | I100: 7552823 | J100: 127.00 zł | O100: 127.00 zł
D101: Wtyczki MC4 4,0-6,0 mm2 (20 sztuk) | G101: =Dachówka!C37 -> 1 | I101: 7552824 | J101: 101.00 zł | O101: 101.00 zł
D102: =D69 -> Zacisk odgromowy 8 i 10mm | G102: =Dachówka!C38 -> 10 | I102: 7457988 | J102: 13.00 zł | O102: 130.00 zł | S102: =_xlfn.NUMBERVALUE(INT(Q102)) -> 0
D103: =IF(H15="dachówka",D77,"") -> 
G104: =IF(H15="dachówka",Dachówka!C33,"") ->  | I104: =_xlfn.IFNA(VLOOKUP(D103,Cennik,2,FALSE),"") ->  | J104: =_xlfn.IFNA(VLOOKUP(D103,Cennik,3,FALSE),"") ->  | O104: =IFERROR((G104*J104)*(1-M104),"") ->  | S104: =_xlfn.NUMBERVALUE(INT(Q104)) -> 0
D105: =D81 -> Kabel solarny 100 m 6mm2 | G105: 1 | I105: =VLOOKUP(D105,Cennik,2,FALSE) -> 7374380 | J105: =VLOOKUP(D105,Cennik,3,FALSE) -> 549.00 zł | O105: =(G105*J105)*(1-M105) -> 549.00 zł
D106: =Cennik!F54 -> Ogranicznik SPD DC 8.2 TYP 1+2 M | G106: 1 | I106: =Cennik!G54 -> 7938240 | J106: =G106*Cennik!H54 -> 913.00 zł | O106: =(G106*J106)*(1-M106) -> 913.00 zł
D108: =Dachówka!B41 -> Osprzęt elektryczny | G108: =Dachówka!C41 -> 1 | J108: 0 | O108: =IFERROR((G108*J108)*(1-M108),"") -> 0.00 zł | S108: =_xlfn.NUMBERVALUE(INT(Q108)) -> 0
D109: =Dachówka!B42 -> Uzgodnienie z rzeczoznawcą ds. PPOŻ | G109: 1 | J109: 0 | O109: =IFERROR((G109*J109)*(1-M109),"") -> 0.00 zł
D110: =Dachówka!B43 -> Montaż | G110: =Dachówka!C43 -> 1 | J110: 0 | O110: =IFERROR((G110*J110)*(1-M110),"") -> 0.00 zł
D111: Dodatkowe elementy montażowe :
I112: =_xlfn.IFNA(VLOOKUP(D112,Cennik,2,FALSE),"") ->  | J112: =_xlfn.IFNA(VLOOKUP(D112,Cennik,3,FALSE),"") ->  | O112: =IFERROR((G112*J112)*(1-M112),"") -> 
D114: Dodatkowe koszty | G114: 1 | I114: =_xlfn.IFNA(VLOOKUP(D114,Cennik,2,FALSE),"") ->  | J114: 0 | O114: =IFERROR((G114*J114)*(1-M114),"") -> 0.00 zł
K117: SUMA netto | O117: =SUM(O91:P109,O112:P114) -> 27,828.20 zł
K118: SUMA netto z montażem | O118: =+O117+O110 -> 27,828.20 zł | P118: =+#REF!+J110 -> 
D119: Moc generatora PV | G119: =(G91*((VLOOKUP(D91,Cennik!F5:I8,4,FALSE))/1000)) -> 11.75 | H119: kWp | K119: Netto/kWp | N119: =+O118/G119 -> 2,369.37 zł
D120: Moc falownika AC | G120: =VLOOKUP(D92,Cennik!F12:I21,4,FALSE) ->  | H120: kW | K120: Zestaw montażowy | N120: =SUM(O93:P108) -> 7,528.20 zł | X120: kW | Y120: 100%
K121: Zestaw/kWp | N121: =N120/G119 -> 640.97 zł | X121: kW | Z121: %
K122: VAT | O122: 23% | S122: 8%
K123: Suma Brutto | O123: =+O118+(O118*$O$122) -> 34,228.69 zł | S123: 23%
K124: Brutto/kWp | O124: =+O123/G119 -> 2,914.32 zł
B126: Partner Viessmann | J126: Arkusz kalkulacyjny nie może zastąpić fachowego projektu instalacji fotowoltaicznej wykonanego przez projektanta z odpowiednimi uprawnieniami. Autor nie ponosi odpowiedzialności za błędy ukryte w arkuszu, oraz za wszelkie negatywne skutki i straty wynikające z jego użytkowania.
T133: TRUE
AA138: 1
AA139: 0

Sheet Dachówka (hidden)
B2: Rozstaw krokwii: | C2: =Dachówka_blachodachówka!I17 -> 805 | D2: cm | E2: Szerokość PV | F2: =VLOOKUP($B$26,Cennik!F5:J8,5,FALSE)+0.02 -> 1.153 | G2: m
B4: Rzędy | C4: Ilość modułów | D4: Klemy środkowe | E4: Klemy końcowe | F4: =Cennik!F59 -> Profil nośny modułu Solo light 4,4m | G4: =Cennik!F52 -> Łącznik profili Solo5 | H4: =B32 -> Hak dachowy Rapid2+ Max | I4: =B33 -> Podkładka uniwesalna 2,5/5 mm pod haki dachowe (100 szt) | J4: =B34 -> Wkręty do drewna VA8x120mm 50St | K4: =B35 -> Zaślepka plastikowa Profi05 20St. | L4: =B38 -> Zacisk odgromowy 8 i 10mm | M4: Zestaw mocujący do pokryć falistych 10 x 200 | N4: Nasadka KlickTop
B5: Rząd 1 | C5: =Dachówka_blachodachówka!G24 -> 8 | D5: =IF(Dachówka!$C5>0,((C5-1)*2),0) -> 14 | E5: =IF(Dachówka!$C5>0,4,0) -> 4 | F5: =(CEILING(((Dachówka!$C5*$F$2)/4.3),1))*2 -> 6 | G5: =(IF((Dachówka!$F5>2),((CEILING((Dachówka!$C5*$F$2/4.2),1))-1),0))*2 -> 4 | H5: =IF(C5=0,0,ROUNDUP((C5/($C$2/100)+1),0)*2) -> 4 | I5: =+H5*4 -> 16 | J5: =+H5*2 -> 8 | K5: =+E5 -> 4 | L5: =IF(Dachówka!$C5>0,2,0) -> 2 | M5: =IF(C5=0,0,ROUNDUP((C5/($C$2/100)+1),0)*2) -> 4 | N5: =M5 -> 4
B6: Rząd 2 | C6: =Dachówka_blachodachówka!G25 -> 6 | D6: =IF(Dachówka!$C6>0,((C6-1)*2),0) -> 10 | E6: =IF(Dachówka!$C6>0,4,0) -> 4 | F6: =(CEILING(((Dachówka!$C6*$F$2)/4.3),1))*2 -> 4 | G6: =(IF((Dachówka!$F6>2),((CEILING((Dachówka!$C6*$F$2/4.2),1))-1),0))*2 -> 2 | H6: =IF(C6=0,0,ROUNDUP((C6/($C$2/100)+1),0)*2) -> 4 | I6: =+H6*4 -> 16 | J6: 8 | K6: 4 | L6: =IF(Dachówka!$C6>0,2,0) -> 2 | M6: =IF(C6=0,0,ROUNDUP((C6/($C$2/100)+1),0)*2) -> 4 | N6: 4
B7: Rząd 3 | C7: =Dachówka_blachodachówka!G26 -> 0 | D7: =IF(Dachówka!$C7>0,((C7-1)*2),0) -> 0 | E7: =IF(Dachówka!$C7>0,4,0) -> 0 | F7: =(CEILING(((Dachówka!$C7*$F$2)/4.3),1))*2 -> 0 | G7: =(IF((Dachówka!$F7>2),((CEILING((Dachówka!$C7*$F$2/4.2),1))-1),0))*2 -> 0 | H7: 0 | I7: 0 | J7: 0 | K7: 0 | L7: =IF(Dachówka!$C7>0,2,0) -> 0 | M7: 0 | N7: 0
B8: Rząd 4 | C8: =Dachówka_blachodachówka!G27 -> 5 | D8: =IF(Dachówka!$C8>0,((C8-1)*2),0) -> 8 | E8: =IF(Dachówka!$C8>0,4,0) -> 4 | F8: =(CEILING(((Dachówka!$C8*$F$2)/4.3),1))*2 -> 4 | G8: =(IF((Dachówka!$F8>2),((CEILING((Dachówka!$C8*$F$2/4.2),1))-1),0))*2 -> 2 | H8: 4 | I8: 16 | J8: 8 | K8: 4 | L8: =IF(Dachówka!$C8>0,2,0) -> 2 | M8: 4 | N8: 4
B9: Rząd 5 | C9: =Dachówka_blachodachówka!G28 -> 5 | D9: =IF(Dachówka!$C9>0,((C9-1)*2),0) -> 8 | E9: =IF(Dachówka!$C9>0,4,0) -> 4 | F9: =(CEILING(((Dachówka!$C9*$F$2)/4.3),1))*2 -> 4 | G9: =(IF((Dachówka!$F9>2),((CEILING((Dachówka!$C9*$F$2/4.2),1))-1),0))*2 -> 2 | H9: 4 | I9: 16 | J9: 8 | K9: 4 | L9: =IF(Dachówka!$C9>0,2,0) -> 2 | M9: 4 | N9: 4
B10: Rząd 6 | C10: =Dachówka_blachodachówka!G29 -> 5 | D10: =IF(Dachówka!$C10>0,((C10-1)*2),0) -> 8 | E10: =IF(Dachówka!$C10>0,4,0) -> 4 | F10: =(CEILING(((Dachówka!$C10*$F$2)/4.3),1))*2 -> 4 | G10: =(IF((Dachówka!$F10>2),((CEILING((Dachówka!$C10*$F$2/4.2),1))-1),0))*2 -> 2 | H10: 4 | I10: 16 | J10: 8 | K10: 4 | L10: =IF(Dachówka!$C10>0,2,0) -> 2 | M10: 4 | N10: 4
B11: Rząd 7 | C11: =Dachówka_blachodachówka!G30 -> 0 | D11: =IF(Dachówka!$C11>0,((C11-1)*2),0) -> 0 | E11: =IF(Dachówka!$C11>0,4,0) -> 0 | F11: =(CEILING(((Dachówka!$C11*$F$2)/4.3),1))*2 -> 0 | G11: =(IF((Dachówka!$F11>2),((CEILING((Dachówka!$C11*$F$2/4.2),1))-1),0))*2 -> 0 | H11: 0 | I11: 0 | J11: 0 | K11: 0 | L11: =IF(Dachówka!$C11>0,2,0) -> 0 | M11: 0 | N11: 0
B12: Rząd 8 | C12: =Dachówka_blachodachówka!G31 -> 0 | D12: =IF(Dachówka!$C12>0,((C12-1)*2),0) -> 0 | E12: =IF(Dachówka!$C12>0,4,0) -> 0 | F12: =(CEILING(((Dachówka!$C12*$F$2)/4.3),1))*2 -> 0 | G12: =(IF((Dachówka!$F12>2),((CEILING((Dachówka!$C12*$F$2/4.2),1))-1),0))*2 -> 0 | H12: 0 | I12: 0 | J12: 0 | K12: 0 | L12: =IF(Dachówka!$C12>0,2,0) -> 0 | M12: 0 | N12: 0
B13: Rząd 9 | C13: =Dachówka_blachodachówka!G32 -> 0 | D13: =IF(Dachówka!$C13>0,((C13-1)*2),0) -> 0 | E13: =IF(Dachówka!$C13>0,4,0) -> 0 | F13: =(CEILING(((Dachówka!$C13*$F$2)/4.3),1))*2 -> 0 | G13: =(IF((Dachówka!$F13>2),((CEILING((Dachówka!$C13*$F$2/4.2),1))-1),0))*2 -> 0 | H13: 0 | I13: 0 | J13: 0 | K13: 0 | L13: =IF(Dachówka!$C13>0,2,0) -> 0 | M13: 0 | N13: 0
B14: Rząd 10 | C14: =Dachówka_blachodachówka!G33 -> 0 | D14: =IF(Dachówka!$C14>0,((C14-1)*2),0) -> 0 | E14: =IF(Dachówka!$C14>0,4,0) -> 0 | F14: =(CEILING(((Dachówka!$C14*$F$2)/4.3),1))*2 -> 0 | G14: =(IF((Dachówka!$F14>2),((CEILING((Dachówka!$C14*$F$2/4.2),1))-1),0))*2 -> 0 | H14: 0 | I14: 0 | J14: 0 | K14: 0 | L14: =IF(Dachówka!$C14>0,2,0) -> 0 | M14: 0 | N14: 0
B15: Rząd 11 | C15: =Dachówka_blachodachówka!G34 -> 0 | D15: =IF(Dachówka!$C15>0,((C15-1)*2),0) -> 0 | E15: =IF(Dachówka!$C15>0,4,0) -> 0 | F15: =(CEILING(((Dachówka!$C15*$F$2)/4.3),1))*2 -> 0 | G15: =(IF((Dachówka!$F15>2),((CEILING((Dachówka!$C15*$F$2/4.2),1))-1),0))*2 -> 0 | H15: 0 | I15: 0 | J15: 0 | K15: 0 | L15: =IF(Dachówka!$C15>0,2,0) -> 0 | M15: 0 | N15: 0
B16: Rząd 12 | C16: =Dachówka_blachodachówka!G35 -> 0 | D16: =IF(Dachówka!$C16>0,((C16-1)*2),0) -> 0 | E16: =IF(Dachówka!$C16>0,4,0) -> 0 | F16: =(CEILING(((Dachówka!$C16*$F$2)/4.3),1))*2 -> 0 | G16: =(IF((Dachówka!$F16>2),((CEILING((Dachówka!$C16*$F$2/4.2),1))-1),0))*2 -> 0 | H16: 0 | I16: 0 | J16: 0 | K16: 0 | L16: =IF(Dachówka!$C16>0,2,0) -> 0 | M16: 0 | N16: 0
B17: Rząd 13 | C17: =Dachówka_blachodachówka!G36 -> 0 | D17: =IF(Dachówka!$C17>0,((C17-1)*2),0) -> 0 | E17: =IF(Dachówka!$C17>0,4,0) -> 0 | F17: =(CEILING(((Dachówka!$C17*$F$2)/4.3),1))*2 -> 0 | G17: =(IF((Dachówka!$F17>2),((CEILING((Dachówka!$C17*$F$2/4.2),1))-1),0))*2 -> 0 | H17: 0 | I17: 0 | J17: 0 | K17: 0 | L17: =IF(Dachówka!$C17>0,2,0) -> 0 | M17: 0 | N17: 0
B18: Rząd 14 | C18: =Dachówka_blachodachówka!G37 -> 0 | D18: =IF(Dachówka!$C18>0,((C18-1)*2),0) -> 0 | E18: =IF(Dachówka!$C18>0,4,0) -> 0 | F18: =(CEILING(((Dachówka!$C18*$F$2)/4.3),1))*2 -> 0 | G18: =(IF((Dachówka!$F18>2),((CEILING((Dachówka!$C18*$F$2/4.2),1))-1),0))*2 -> 0 | H18: 0 | I18: 0 | J18: 0 | K18: 0 | L18: =IF(Dachówka!$C18>0,2,0) -> 0 | M18: 0 | N18: 0
B19: Rząd 15 | C19: =Dachówka_blachodachówka!G38 -> 0 | D19: =IF(Dachówka!$C19>0,((C19-1)*2),0) -> 0 | E19: =IF(Dachówka!$C19>0,4,0) -> 0 | F19: =(CEILING(((Dachówka!$C19*$F$2)/4.3),1))*2 -> 0 | G19: =(IF((Dachówka!$F19>2),((CEILING((Dachówka!$C19*$F$2/4.2),1))-1),0))*2 -> 0 | H19: 0 | I19: 0 | J19: 0 | K19: 0 | L19: =IF(Dachówka!$C19>0,2,0) -> 0 | M19: 0 | N19: 0
B20: Rząd 16 | C20: =Dachówka_blachodachówka!G39 -> 0 | D20: =IF(Dachówka!$C20>0,((C20-1)*2),0) -> 0 | E20: =IF(Dachówka!$C20>0,4,0) -> 0 | F20: =(CEILING(((Dachówka!$C20*$F$2)/4.3),1))*2 -> 0 | G20: =(IF((Dachówka!$F20>2),((CEILING((Dachówka!$C20*$F$2/4.2),1))-1),0))*2 -> 0 | H20: 0 | I20: 0 | J20: 0 | K20: 0 | L20: =IF(Dachówka!$C20>0,2,0) -> 0 | M20: 0 | N20: 0
B21: Rząd 17 | C21: =Dachówka_blachodachówka!G40 -> 0 | D21: =IF(Dachówka!$C21>0,((C21-1)*2),0) -> 0 | E21: =IF(Dachówka!$C21>0,4,0) -> 0 | F21: =(CEILING(((Dachówka!$C21*$F$2)/4.3),1))*2 -> 0 | G21: =(IF((Dachówka!$F21>2),((CEILING((Dachówka!$C21*$F$2/4.2),1))-1),0))*2 -> 0 | H21: 0 | I21: 0 | J21: 0 | K21: 0 | L21: =IF(Dachówka!$C21>0,2,0) -> 0 | M21: 0 | N21: 0
B22: Rząd 18 | C22: =Dachówka_blachodachówka!G41 -> 0 | D22: =IF(Dachówka!$C22>0,((C22-1)*2),0) -> 0 | E22: =IF(Dachówka!$C22>0,4,0) -> 0 | F22: =(CEILING(((Dachówka!$C22*$F$2)/4.3),1))*2 -> 0 | G22: =(IF((Dachówka!$F22>2),((CEILING((Dachówka!$C22*$F$2/4.2),1))-1),0))*2 -> 0 | H22: 0 | I22: 0 | J22: 0 | K22: 0 | L22: =IF(Dachówka!$C22>0,2,0) -> 0 | M22: 0 | N22: 0
B23: SUMA | C23: =SUM(C5:C22) -> 29 | D23: 48 | E23: 20 | F23: 22 | G23: 12 | H23: 20 | I23: 80 | J23: 40 | K23: 20 | L23: 10 | M23: 20 | N23: 20
B25: Zestaw montażowy: | C25: Sumaryczna ilość | D25: Nr zam. | E25: Cena jedn. | F25: Rabat | G25: Kwota netto
B26: =Dachówka_blachodachówka!D91 -> Vitovolt 300 M405 AK Standard | C26: =+C23 -> 29 | D26: =VLOOKUP($B$26,PV,2,FALSE) -> 7959744 | E26: =VLOOKUP($B$26,PV,3,FALSE) -> 700.00 zł | F26: =Dachówka_blachodachówka!M91 -> 0% | G26: =(E26*C26)*(1-F26) -> 20,300.00 zł
B27: =Dachówka_blachodachówka!D92 -> ***FRONIUS*** | C27: 1 | D27: =VLOOKUP($B$27,Cennik!F12:H21,2,FALSE) ->  | E27: =VLOOKUP($B$27,Cennik!F12:H21,3,FALSE) ->  | F27: =Dachówka_blachodachówka!M92 -> 0%
B28: =Dachówka_blachodachówka!D93 -> Klemy środkowe czarne | C28: =D23 -> 48 | D28: =VLOOKUP($B$28,Cennik!F29:H30,2,FALSE) -> 7783978 | E28: =VLOOKUP($B$28,Cennik!F29:H30,3,FALSE) -> 11.40 zł | F28: =$G$46 -> 0% | G28: 547.20 zł
B29: =Dachówka_blachodachówka!D94 -> Klemy końcowe czarne | C29: =E23 -> 20 | D29: =VLOOKUP($B$29,Cennik!F31:H32,2,FALSE) -> 7783973 | E29: =VLOOKUP($B$29,Cennik!F31:H32,3,FALSE) -> 11.50 zł | F29: 0% | G29: 230.00 zł
B30: =+F4 -> Profil nośny modułu Solo light 4,4m | C30: =F23 -> 22 | D30: =VLOOKUP($B30,Cennik,2,FALSE) -> 7955972 | E30: =VLOOKUP($B30,Cennik,3,FALSE) -> 189.00 zł | F30: 0% | G30: 4,158.00 zł
B31: =G4 -> Łącznik profili Solo5 | C31: =G23 -> 12 | D31: =VLOOKUP(B31,Cennik,2,FALSE) -> 7561087 | E31: =VLOOKUP($B31,Cennik,3,FALSE) -> 17.00 zł | F31: 0% | G31: 204.00 zł
B32: =Dachówka_blachodachówka!D60 -> Hak dachowy Rapid2+ Max | C32: =H23 -> 20 | D32: =VLOOKUP($B$32,Cennik,2,FALSE) -> 7457973 | E32: =VLOOKUP($B$32,Cennik,3,FALSE) -> 97.00 zł | F32: 0% | G32: 1,940.00 zł
B33: =Dachówka_blachodachówka!D77 -> Podkładka uniwesalna 2,5/5 mm pod haki dachowe (100 szt) | C33: =IF(B33="Podkładka VAMax Rapid Max 25 szt.",ROUNDUP(I23/25,0),ROUNDUP((I23/50),0)) -> 2
B34: =Cennik!F42 -> Wkręty do drewna VA8x120mm 50St | C34: =ROUNDUP((J23/50),0) -> 1 | D34: =VLOOKUP($B$34,Cennik,2,FALSE) -> 7457992 | E34: =VLOOKUP($B$34,Cennik,3,FALSE) -> 177.00 zł | F34: 0% | G34: 177.00 zł
B35: =Cennik!F45 -> Zaślepka plastikowa Profi05 20St. | C35: =ROUNDUP((K23/20),0) -> 1 | D35: =VLOOKUP(B35,Cennik,2,FALSE) -> 7497891 | E35: =VLOOKUP(B35,Cennik,3,FALSE) -> 35.00 zł | F35: 0% | G35: 35.00 zł
B36: =Cennik!F49 -> Gniazda MC4 EVO2 4,0-6,0 mm2 (20 sztuk) | C36: 1 | D36: =VLOOKUP(B36,Cennik,2,FALSE) -> 7998634 | E36: =VLOOKUP(B36,Cennik,3,FALSE) -> 127.00 zł | F36: 0% | G36: 127.00 zł
B37: =Cennik!F51 -> Wtyczki MC4 EVO2 4,0-6,0 mm2 (20 sztuk) | C37: 1 | D37: =VLOOKUP(B37,Cennik,2,FALSE) -> 7998635 | E37: =VLOOKUP(B37,Cennik,3,FALSE) -> 101.00 zł | F37: 0% | G37: 101.00 zł
B38: =Cennik!F40 -> Zacisk odgromowy 8 i 10mm | C38: =L23 -> 10 | D38: =VLOOKUP(B38,Cennik,2,FALSE) -> 7457988 | E38: =VLOOKUP(B38,Cennik,3,FALSE) -> 13.00 zł | F38: 0% | G38: 130.00 zł
B39: =Dachówka_blachodachówka!D105 -> Kabel solarny 100 m 6mm2 | C39: =Dachówka_blachodachówka!G105 -> 1 | D39: =VLOOKUP($B$39,Cennik!F23:H26,2,FALSE) -> 7374380 | E39: =VLOOKUP($B$39,Cennik!F23:H26,3,FALSE) -> 549.00 zł | F39: =Dachówka_blachodachówka!M105 -> 0% | G39: 549.00 zł
B40: =Dachówka_blachodachówka!#REF! ->  | C40: =Dachówka_blachodachówka!#REF! ->  | D40: =_xlfn.IFNA(VLOOKUP($B$40,Cennik!$F$10:$H$59,2,FALSE),"") ->  | E40: =_xlfn.IFNA(VLOOKUP($B$40,Cennik!$F$10:$H$59,3,FALSE),"") ->  | F40: =Dachówka_blachodachówka!#REF! ->  | G40: =IF(E40="","",((E40*C40)*(1-F40))) -> 
B41: Osprzęt elektryczny | C41: 1 | E41: =Dachówka_blachodachówka!J108 -> 0.00 zł | F41: =Dachówka_blachodachówka!M108 -> 0% | G41: 0.00 zł
B42: Uzgodnienie z rzeczoznawcą ds. PPOŻ | C42: 1 | E42: =Dachówka_blachodachówka!J109 -> 0.00 zł | F42: =Dachówka_blachodachówka!M109 -> 0% | G42: 0.00 zł
B43: Montaż | C43: 1 | E43: =Dachówka_blachodachówka!J110 -> 0.00 zł | F43: =Dachówka_blachodachówka!M110 -> 0% | G43: 0.00 zł
E45: SUMA | G45: =SUM(G26:G43) -> 
B46: Moc generatora | C46: =(C26*((VLOOKUP(B26,Cennik!F5:I8,4,FALSE))/1000)) -> 11.75 | D46: kWp | E46: Rabat | G46: =Dachówka_blachodachówka!P115 -> 0%
E47: Netto/kWp | G47: =+G45/C46 ->  | H47: =+G47*1.23 -> 
E48: Zestaw montażowy | G48: =SUM(G28:G41) -> 
E49: Zestaw/kWp | G49: =G48/C46 -> 
B52: Dachówka
B53: Blachodachówka

Sheet Blachodachowka (hidden)
B2: Rozstaw krokwii: | C2: =Dachówka_blachodachówka!I17 -> 805 | D2: cm | E2: Szerokość PV | F2: =Dachówka!F2 -> 1.153 | G2: m
B4: Rzędy | C4: Ilość modułów | D4: Klemy środkowe | E4: Klemy końcowe | F4: =Dachówka!F4 -> Profil nośny modułu Solo light 4,4m | G4: =Cennik!F52 -> Łącznik profili Solo5 | H4: Hak dachowy Rapid 2+ 45 | I4: Wkręt do drewna (50 szt.) | J4: Kołpak końcowy (20szt.) | K4: =B37 -> Zacisk odgromowy 8 i 10mm | L4: Zestaw mocujący do pokryć falistych 10 x 200 | M4: Nasadka KlickTop
B5: Rząd 1 | C5: =Dachówka_blachodachówka!G24 -> 8 | D5: =IF(Dachówka!$C5>0,((C5-1)*2),0) -> 14 | E5: =IF(Dachówka!$C5>0,4,0) -> 4 | F5: =(CEILING(((Dachówka!$C5*$F$2)/4.2),1))*2 -> 6 | G5: =(IF((Dachówka!$F5>2),((CEILING((Dachówka!$C5*$F$2/4.2),1))-1),0))*2 -> 4 | H5: =IF(C5=0,0,ROUNDUP((C5/($C$2/100)+1),0)*2) -> 4 | I5: =+H5*2 -> 8 | J5: =+E5 -> 4 | K5: =IF(Dachówka!$C5>0,2,0) -> 2 | L5: =IF(C5=0,0,ROUNDUP((C5/($C$2/100)+1),0)*2) -> 4 | M5: =L5 -> 4
B6: Rząd 2 | C6: =Dachówka_blachodachówka!G25 -> 6 | D6: =IF(Dachówka!$C6>0,((C6-1)*2),0) -> 10 | E6: =IF(Dachówka!$C6>0,4,0) -> 4 | F6: =(CEILING(((Dachówka!$C6*$F$2)/4.2),1))*2 -> 4 | G6: =(IF((Dachówka!$F6>2),((CEILING((Dachówka!$C6*$F$2/4.2),1))-1),0))*2 -> 2 | H6: =IF(C6=0,0,ROUNDUP((C6/($C$2/100)+1),0)*2) -> 4 | I6: 8 | J6: 4 | K6: =IF(Dachówka!$C6>0,2,0) -> 2 | L6: =IF(C6=0,0,ROUNDUP((C6/($C$2/100)+1),0)*2) -> 4 | M6: 4
B7: Rząd 3 | C7: =Dachówka_blachodachówka!G26 -> 0 | D7: =IF(Dachówka!$C7>0,((C7-1)*2),0) -> 0 | E7: =IF(Dachówka!$C7>0,4,0) -> 0 | F7: =(CEILING(((Dachówka!$C7*$F$2)/4.2),1))*2 -> 0 | G7: =(IF((Dachówka!$F7>2),((CEILING((Dachówka!$C7*$F$2/4.2),1))-1),0))*2 -> 0 | H7: 0 | I7: 0 | J7: 0 | K7: =IF(Dachówka!$C7>0,2,0) -> 0 | L7: 0 | M7: 0
B8: Rząd 4 | C8: =Dachówka_blachodachówka!G27 -> 5 | D8: =IF(Dachówka!$C8>0,((C8-1)*2),0) -> 8 | E8: =IF(Dachówka!$C8>0,4,0) -> 4 | F8: =(CEILING(((Dachówka!$C8*$F$2)/4.2),1))*2 -> 4 | G8: =(IF((Dachówka!$F8>2),((CEILING((Dachówka!$C8*$F$2/4.2),1))-1),0))*2 -> 2 | H8: 4 | I8: 8 | J8: 4 | K8: =IF(Dachówka!$C8>0,2,0) -> 2 | L8: 4 | M8: 4
B9: Rząd 5 | C9: =Dachówka_blachodachówka!G28 -> 5 | D9: =IF(Dachówka!$C9>0,((C9-1)*2),0) -> 8 | E9: =IF(Dachówka!$C9>0,4,0) -> 4 | F9: =(CEILING(((Dachówka!$C9*$F$2)/4.2),1))*2 -> 4 | G9: =(IF((Dachówka!$F9>2),((CEILING((Dachówka!$C9*$F$2/4.2),1))-1),0))*2 -> 2 | H9: 4 | I9: 8 | J9: 4 | K9: =IF(Dachówka!$C9>0,2,0) -> 2 | L9: 4 | M9: 4
B10: Rząd 6 | C10: =Dachówka_blachodachówka!G29 -> 5 | D10: =IF(Dachówka!$C10>0,((C10-1)*2),0) -> 8 | E10: =IF(Dachówka!$C10>0,4,0) -> 4 | F10: =(CEILING(((Dachówka!$C10*$F$2)/4.2),1))*2 -> 4 | G10: =(IF((Dachówka!$F10>2),((CEILING((Dachówka!$C10*$F$2/4.2),1))-1),0))*2 -> 2 | H10: 4 | I10: 8 | J10: 4 | K10: =IF(Dachówka!$C10>0,2,0) -> 2 | L10: 4 | M10: 4
B11: Rząd 7 | C11: =Dachówka_blachodachówka!G30 -> 0 | D11: =IF(Dachówka!$C11>0,((C11-1)*2),0) -> 0 | E11: =IF(Dachówka!$C11>0,4,0) -> 0 | F11: =(CEILING(((Dachówka!$C11*$F$2)/4.2),1))*2 -> 0 | G11: =(IF((Dachówka!$F11>2),((CEILING((Dachówka!$C11*$F$2/4.2),1))-1),0))*2 -> 0 | H11: 0 | I11: 0 | J11: 0 | K11: =IF(Dachówka!$C11>0,2,0) -> 0 | L11: 0 | M11: 0
B12: Rząd 8 | C12: =Dachówka_blachodachówka!G31 -> 0 | D12: =IF(Dachówka!$C12>0,((C12-1)*2),0) -> 0 | E12: =IF(Dachówka!$C12>0,4,0) -> 0 | F12: =(CEILING(((Dachówka!$C12*$F$2)/4.2),1))*2 -> 0 | G12: =(IF((Dachówka!$F12>2),((CEILING((Dachówka!$C12*$F$2/4.2),1))-1),0))*2 -> 0 | H12: 0 | I12: 0 | J12: 0 | K12: =IF(Dachówka!$C12>0,2,0) -> 0 | L12: 0 | M12: 0
B13: Rząd 9 | C13: =Dachówka_blachodachówka!G32 -> 0 | D13: =IF(Dachówka!$C13>0,((C13-1)*2),0) -> 0 | E13: =IF(Dachówka!$C13>0,4,0) -> 0 | F13: =(CEILING(((Dachówka!$C13*$F$2)/4.2),1))*2 -> 0 | G13: =(IF((Dachówka!$F13>2),((CEILING((Dachówka!$C13*$F$2/4.2),1))-1),0))*2 -> 0 | H13: 0 | I13: 0 | J13: 0 | K13: =IF(Dachówka!$C13>0,2,0) -> 0 | L13: 0 | M13: 0
B14: Rząd 10 | C14: =Dachówka_blachodachówka!G33 -> 0 | D14: =IF(Dachówka!$C14>0,((C14-1)*2),0) -> 0 | E14: =IF(Dachówka!$C14>0,4,0) -> 0 | F14: =(CEILING(((Dachówka!$C14*$F$2)/4.2),1))*2 -> 0 | G14: =(IF((Dachówka!$F14>2),((CEILING((Dachówka!$C14*$F$2/4.2),1))-1),0))*2 -> 0 | H14: 0 | I14: 0 | J14: 0 | K14: =IF(Dachówka!$C14>0,2,0) -> 0 | L14: 0 | M14: 0
B15: Rząd 11 | C15: =Dachówka_blachodachówka!G34 -> 0 | D15: =IF(Dachówka!$C15>0,((C15-1)*2),0) -> 0 | E15: =IF(Dachówka!$C15>0,4,0) -> 0 | F15: =(CEILING(((Dachówka!$C15*$F$2)/4.2),1))*2 -> 0 | G15: =(IF((Dachówka!$F15>2),((CEILING((Dachówka!$C15*$F$2/4.2),1))-1),0))*2 -> 0 | H15: 0 | I15: 0 | J15: 0 | K15: =IF(Dachówka!$C15>0,2,0) -> 0 | L15: 0 | M15: 0
B16: Rząd 12 | C16: =Dachówka_blachodachówka!G41 -> 0 | D16: =IF(Dachówka!$C16>0,((C16-1)*2),0) -> 0 | E16: =IF(Dachówka!$C16>0,4,0) -> 0 | F16: =(CEILING(((Dachówka!$C16*$F$2)/4.2),1))*2 -> 0 | G16: =(IF((Dachówka!$F16>2),((CEILING((Dachówka!$C16*$F$2/4.2),1))-1),0))*2 -> 0 | H16: 0 | I16: 0 | J16: 0 | K16: =IF(Dachówka!$C16>0,2,0) -> 0 | L16: 0 | M16: 0
B17: Rząd 13 | C17: =Dachówka_blachodachówka!G42 -> 0 | D17: =IF(Dachówka!$C17>0,((C17-1)*2),0) -> 0 | E17: =IF(Dachówka!$C17>0,4,0) -> 0 | F17: =(CEILING(((Dachówka!$C17*$F$2)/4.2),1))*2 -> 0 | G17: =(IF((Dachówka!$F17>2),((CEILING((Dachówka!$C17*$F$2/4.2),1))-1),0))*2 -> 0 | H17: 0 | I17: 0 | J17: 0 | K17: =IF(Dachówka!$C17>0,2,0) -> 0 | L17: 0 | M17: 0
B18: Rząd 14 | C18: =Dachówka_blachodachówka!G43 -> 0 | D18: =IF(Dachówka!$C18>0,((C18-1)*2),0) -> 0 | E18: =IF(Dachówka!$C18>0,4,0) -> 0 | F18: =(CEILING(((Dachówka!$C18*$F$2)/4.2),1))*2 -> 0 | G18: =(IF((Dachówka!$F18>2),((CEILING((Dachówka!$C18*$F$2/4.2),1))-1),0))*2 -> 0 | H18: 0 | I18: 0 | J18: 0 | K18: =IF(Dachówka!$C18>0,2,0) -> 0 | L18: 0 | M18: 0
B19: Rząd 15 | C19: =Dachówka_blachodachówka!G44 -> 0 | D19: =IF(Dachówka!$C19>0,((C19-1)*2),0) -> 0 | E19: =IF(Dachówka!$C19>0,4,0) -> 0 | F19: =(CEILING(((Dachówka!$C19*$F$2)/4.2),1))*2 -> 0 | G19: =(IF((Dachówka!$F19>2),((CEILING((Dachówka!$C19*$F$2/4.2),1))-1),0))*2 -> 0 | H19: 0 | I19: 0 | J19: 0 | K19: =IF(Dachówka!$C19>0,2,0) -> 0 | L19: 0 | M19: 0
B20: Rząd 16 | C20: =Dachówka_blachodachówka!G45 -> 0 | D20: =IF(Dachówka!$C20>0,((C20-1)*2),0) -> 0 | E20: =IF(Dachówka!$C20>0,4,0) -> 0 | F20: =(CEILING(((Dachówka!$C20*$F$2)/4.2),1))*2 -> 0 | G20: =(IF((Dachówka!$F20>2),((CEILING((Dachówka!$C20*$F$2/4.2),1))-1),0))*2 -> 0 | H20: 0 | I20: 0 | J20: 0 | K20: =IF(Dachówka!$C20>0,2,0) -> 0 | L20: 0 | M20: 0
B21: Rząd 17 | C21: =Dachówka_blachodachówka!G46 -> 0 | D21: =IF(Dachówka!$C21>0,((C21-1)*2),0) -> 0 | E21: =IF(Dachówka!$C21>0,4,0) -> 0 | F21: =(CEILING(((Dachówka!$C21*$F$2)/4.2),1))*2 -> 0 | G21: =(IF((Dachówka!$F21>2),((CEILING((Dachówka!$C21*$F$2/4.2),1))-1),0))*2 -> 0 | H21: 0 | I21: 0 | J21: 0 | K21: =IF(Dachówka!$C21>0,2,0) -> 0 | L21: 0 | M21: 0
B22: Rząd 18 | C22: =Dachówka_blachodachówka!G47 -> 0 | D22: =IF(Dachówka!$C22>0,((C22-1)*2),0) -> 0 | E22: =IF(Dachówka!$C22>0,4,0) -> 0 | F22: =(CEILING(((Dachówka!$C22*$F$2)/4.2),1))*2 -> 0 | G22: =(IF((Dachówka!$F22>2),((CEILING((Dachówka!$C22*$F$2/4.2),1))-1),0))*2 -> 0 | H22: 0 | I22: 0 | J22: 0 | K22: =IF(Dachówka!$C22>0,2,0) -> 0 | L22: 0 | M22: 0
B23: SUMA | C23: =SUM(C5:C22) -> 29 | D23: 48 | E23: 20 | F23: 22 | G23: 12 | H23: 20 | I23: 40 | J23: 20 | K23: 10 | L23: 20 | M23: 20
B25: Zestaw montażowy: | C25: Sumaryczna ilość | D25: Nr zam. | E25: Cena jedn. | F25: Rabat | G25: Kwota netto
B26: =Dachówka!B26 -> Vitovolt 300 M405 AK Standard | C26: =+C23 -> 29 | D26: =VLOOKUP($B$26,PV,2,FALSE) -> 7959744 | E26: =VLOOKUP($B$26,PV,3,FALSE) -> 700.00 zł | F26: =$G$43 -> 0% | G26: =(E26*C26)*(1-F26) -> 20,300.00 zł
B27: =Dachówka_blachodachówka!D92 -> ***FRONIUS*** | C27: 1 | D27: =VLOOKUP($B$27,Cennik!F12:H21,2,FALSE) ->  | E27: =VLOOKUP($B$27,Cennik!F12:H21,3,FALSE) ->  | F27: 0%
B28: =Dachówka!B28 -> Klemy środkowe czarne | C28: =D23 -> 48 | D28: =VLOOKUP($B$28,Cennik,2,FALSE) -> 7783978 | E28: =VLOOKUP($B$28,Cennik!F29:H30,3,FALSE) -> 11.40 zł | F28: 0% | G28: 547.20 zł
B29: =Dachówka!B29 -> Klemy końcowe czarne | C29: =E23 -> 20 | D29: =VLOOKUP($B$29,Cennik,2,FALSE) -> 7783973 | E29: =VLOOKUP($B$29,Cennik!F31:H32,3,FALSE) -> 11.50 zł | F29: 0% | G29: 230.00 zł
B30: =+F4 -> Profil nośny modułu Solo light 4,4m | C30: =F23 -> 22 | D30: =VLOOKUP($B30,Cennik,2,FALSE) -> 7955972 | E30: =VLOOKUP($B30,Cennik,3,FALSE) -> 189.00 zł | F30: 0% | G30: 4,158.00 zł
B31: =G4 -> Łącznik profili Solo5 | C31: =G23 -> 12 | D31: =VLOOKUP(B31,Cennik,2,FALSE) -> 7561087 | E31: =VLOOKUP($B31,Cennik,3,FALSE) -> 17.00 zł | F31: 0% | G31: 204.00 zł
B32: =Cennik!F37 -> Zest. mocujący do pokryć falistych 10x200 | C32: =L23 -> 20 | D32: =VLOOKUP($B$32,Cennik,2,FALSE) -> 7736574 | E32: =VLOOKUP($B$32,Cennik,3,FALSE) -> 11.50 zł | F32: 0% | G32: 230.00 zł
B33: Nasadka KlickTop | C33: =M23 -> 20 | D33: =VLOOKUP($B$33,Cennik,2,FALSE) -> 7164821 | E33: =VLOOKUP($B$33,Cennik,3,FALSE) -> 15.20 zł | F33: 0% | G33: 304.00 zł
B34: =Dachówka!B35 -> Zaślepka plastikowa Profi05 20St. | C34: =ROUNDUP((J23/20),0) -> 1 | D34: =VLOOKUP(B34,Cennik,2,FALSE) -> 7497891 | E34: =VLOOKUP(B34,Cennik,3,FALSE) -> 35.00 zł | F34: 0% | G34: 35.00 zł
B35: =Dachówka!B36 -> Gniazda MC4 EVO2 4,0-6,0 mm2 (20 sztuk) | C35: 1 | D35: =VLOOKUP(B35,Cennik,2,FALSE) -> 7998634 | E35: =VLOOKUP(B35,Cennik,3,FALSE) -> 127.00 zł | F35: 0% | G35: 127.00 zł
B36: =Dachówka!B37 -> Wtyczki MC4 EVO2 4,0-6,0 mm2 (20 sztuk) | C36: 1 | D36: =VLOOKUP(B36,Cennik,2,FALSE) -> 7998635 | E36: =VLOOKUP(B36,Cennik,3,FALSE) -> 101.00 zł | F36: 0% | G36: 101.00 zł
B37: =Dachówka!B38 -> Zacisk odgromowy 8 i 10mm | C37: =K23 -> 10 | D37: =VLOOKUP(B37,Cennik,2,FALSE) -> 7457988 | E37: =VLOOKUP(B37,Cennik,3,FALSE) -> 13.00 zł | F37: 0% | G37: 130.00 zł
B38: Kabel solarny 500 m 6mm2 | C38: 1 | D38: =VLOOKUP($B$38,Cennik!F23:H26,2,FALSE) -> 7510780 | E38: =VLOOKUP($B$38,Cennik!F23:H26,3,FALSE) -> 2,626.00 zł | F38: 0% | G38: 2,626.00 zł
B39: Osprzęt elektryczny | C39: 1 | E39: =Dachówka_blachodachówka!J108 -> 0.00 zł | F39: =Dachówka_blachodachówka!M108 -> 0% | G39: 0.00 zł
B40: Montaż | C40: 1 | E40: =Dachówka_blachodachówka!J110 -> 0.00 zł | F40: =Dachówka_blachodachówka!M110 -> 0% | G40: 0.00 zł
E42: SUMA | G42: =SUM(G26:G40) -> 
B43: Moc generatora | C43: =(C26*((VLOOKUP(B26,Cennik!F5:I8,4,FALSE))/1000)) -> 11.75 | D43: kWp | E43: Rabat | G43: =Dachówka_blachodachówka!P115 -> 0%
E44: Netto/kWp | G44: =+G42/C43 ->  | H44: =+G44*1.23 -> 
E45: Zestaw montażowy | G45: =SUM(G28:G39) -> 8,692.20 zł
E46: Zestaw/kWp | G46: =G45/C43 -> 740.08 zł

Sheet Cennik
F4: Nazwa | G4: Nr zam. | H4: Cena katalogowa | I4: Moc [W] | J4: Szerokość | K4: Wysokość
F5: Vitovolt 300 M405 WE Blackframe | G5: 7998593 | H5: 789.00 zł | I5: 405 | J5: 1.140 | K5: 1.719
F6: Vitovolt 300 M405 AK Standard | G6: 7959744 | H6: 700.00 zł | I6: 405 | J6: 1.133 | K6: 1.708
F7: Moduł PV VSE 375 black frame | G7: 7719816 | H7: 500.00 zł | I7: 375 | J7: 1.038 | K7: 1.755
F8: Vitovolt 300 M340 WA black frame | G8: 7731047 | H8: 518.00 zł | I8: 340 | J8: 1.068 | K8: 1.622
F10: Nazwa | G10: Nr zam. | H10: Cena katalogowa | I10: Moc [kW]
F11: ***FRONIUS***
F12: Inwerter Symo 3.0-3-M | G12: 7202628 | H12: 5,730.00 zł | I12: 3
F13: Inwerter Symo 3.7-3-M | G13: 7202629 | H13: 6,288.00 zł | I13: 3.7 | M13: 7202628 | N13: Inwerter Symo 3.0-3-M | O13: 4500
F14: Inwerter Symo 17.5-3-M | G14: 7202638 | H14: 11,889.00 zł | I14: 17.5 | M14: 7202637 | N14: Inwerter Symo 15.0-3-M | O14: 9750
F15: Inwerter Symo 20.0-3-M | G15: 7202639 | H15: 12,575.00 zł | I15: 20 | M15: 7202638 | N15: Inwerter Symo 17.5-3-M | O15: 10500
F16: ***SMA*** | M16: 7202639 | N16: Inwerter Symo 20.0-3-M | O16: 11000
F17: Inwerter SB 1.5-1 VL-40 | G17: 7561032 | H17: 3,375.00 zł | I17: 1.5 | M17: 7561032 | N17: Falownik SB 1,5-1 VL40 | O17: 2832
F18: Inwerter SB 2.5-1 VL-40 | G18: 7561033 | H18: 4,550.00 zł | I18: 2.5 | M18: 7561033 | N18: Falownik SB 2,5-1 VL40 | O18: 3200
F19: Inwerter Tripower 4.0 | G19: 7724635 | H19: 6,864.00 zł | I19: 4 | M19: 7724635 | N19: Falownik Tripower 4.0 | O19: 4740
F20: Inwerter Tripower 5.0 | G20: 7724636 | H20: 7,316.00 zł | I20: 5 | M20: 7724636 | N20: Falownik Tripower 5.0 | O20: 5040
F21: Inwerter Tripower 6.0 | G21: 7724637 | H21: 8,179.00 zł | I21: 6 | M21: 7724637 | N21: Falownik Tripower 6.0 | O21: 5450
F23: Kabel solarny 100 m 4mm2 | G23: 7185800 | H23: 395.00 zł | M23: 7457972 | N23: Haki dachowe Rapid2+ 45 | O23: 32
F24: Kabel solarny 100 m 6mm2 | G24: 7374380 | H24: 549.00 zł | M24: 7457973 | N24: Hak dachowy Rapid2+ Max | O24: 49
F25: Kabel solarny 500 m 4mm2 | G25: 7510779 | H25: 1,937.00 zł | M25: 7457976 | N25: Zest. moc. do pokr. fal. KlickTop 10x200 | O25: 14
F26: Kabel solarny 500 m 6mm2 | G26: 7510780 | H26: 2,626.00 zł | M26: 7457988 | N26: Klamra odgromowa f. 8 und 10mm | O26: 8
M27: 7457990 | N27: Podkładka 2mm EcoS Rapid Standard 50 szt. | O27: 31
M28: 7457991 | N28: Podkładka 2mm VAMax Rapid Max 25 szt. | O28: 42
F29: Klemy środkowe srebrne | G29: 7783976 | H29: 7.00 zł | M29: 7457992 | N29: Wkręty do drewna VA8x120mm 50St | O29: 109
F30: Klemy środkowe czarne | G30: 7783978 | H30: 11.40 zł | M30: 7457993 | N30: Śruba z łbem kwadratowym (100 szt.) | O30: 128
F31: Klemy końcowe srebrne | G31: 7783970 | H31: 7.00 zł | M31: 7457994 | N31: Nakrętka kołnierzowa zębata (100 szt.) | O31: 64
F32: Klemy końcowe czarne | G32: 7783973 | H32: 11.50 zł
F33: Nasadka KlickTop | G33: 7164821 | H33: 15.20 zł | M33: 7185800 | N33: Przew.solar. FLEX-SOL 4mm L=100m czar. | O33: 247
F34: Haki dachowe Rapid2+ 45 | G34: 7457972 | H34: 63.00 zł | M34: 7374380 | N34: Kabel solarny FLEX-SOL 6mm L=100m czarn | O34: 338
F35: Hak dachowy Rapid2+ Max | G35: 7457973 | H35: 97.00 zł | M35: 7497891 | N35: Zaślepka plastikowa Profi05 20St. | O35: 14
F36: Hak dachowy Rapid 2+ Uniwersalny | G36: 7721229 | H36: 95.00 zł
F37: Zest. mocujący do pokryć falistych 10x200 | G37: 7736574 | H37: 11.50 zł | M37: 7510779 | N37: Kabel solarny 4mm L=500m czarny | O37: 1190
F38: Zest. mocujący do pokryć falistych 12x200 | G38: 7736575 | H38: 19.20 zł | M38: 7510780 | N38: Kabel solarny 6mm L=500m czarny | O38: 1550
F39: Zest. mocujący do pokryć falistych 12x300 | G39: 7736576 | H39: 22.70 zł | M39: 7510838 | N39: Wkładka z gumy EPDM 3mm 48mmx50m | O39: 144
F40: Zacisk odgromowy 8 i 10mm | G40: 7457988 | H40: 13.00 zł
F41: Podkładka uniwesalna 2,5/5 mm pod haki dachowe (100 szt) | G41: 7955978 | H41: 294.00 zł | M41: 7552775 | N41: Klucz MCT4 | O41: 20
F42: Wkręty do drewna VA8x120mm 50St | G42: 7457992 | H42: 177.00 zł | M42: 7552793 | N42: Złącze-gniazdo MC-T4 10/20 | O42: 100
F43: Śruba z łbem kwadratowym (100 szt.) | G43: 7457993 | H43: 201.00 zł | M43: 7552797 | N43: Złącze-wtyczka MC-T4 10/20 | O43: 80
F44: Nakrętka kołnierzowa zębata (100 szt.) | G44: 7457994 | H44: 112.00 zł | M44: 7552823 | N44: Zestaw gniazd (+) IP67 MCT4 4-6/20 | O44: 100
F45: Zaślepka plastikowa Profi05 20St. | G45: 7497891 | H45: 35.00 zł | M45: 7552824 | N45: Zestaw wtyczek (-) IP67 MCT4 4-6/20 | O45: 80
F46: Wkładka z gumy EPDM 3mm 48mmx50m | G46: 7510838 | H46: 208.00 zł
F47: Klucz MCT4 | G47: 7552775 | H47: 24.20 zł | M47: 7561087 | N47: Złącze Solo05 (wstępne) | O47: 9
F48: Gniazda MC4 4,0-6,0 mm2 (20 sztuk) | G48: 7552823 | H48: 127.00 zł
F49: Gniazda MC4 EVO2 4,0-6,0 mm2 (20 sztuk) | G49: 7998634 | H49: 127.00 zł | M49: 7731035 | N49: Vitovolt 300 P290 AE, typ Half-Cut (dostępne do wyczerpania zapasów) | O49: 485
F50: Wtyczki MC4 4,0-6,0 mm2 (20 sztuk) | G50: 7552824 | H50: 101.00 zł | M50: 7731047 | N50: Vitovolt 300 M340 WA (dostępne do wyczerpania zapasów) | O50: 560
F51: Wtyczki MC4 EVO2 4,0-6,0 mm2 (20 sztuk) | G51: 7998635 | H51: 101.00 zł | M51: 7731807 | N51: Vitovolt 300, typ 310 Allblack (dostępne do wyczerpania zapasów) | O51: 599
F52: Łącznik profili Solo5 | G52: 7561087 | H52: 17.00 zł | M52: 7731811 | N52: Vitovolt 300 M310 PD (dostępne do wyczerpania zapasów) | O52: 483
F53: Single Fix-Vario Solo | G53: 7737174 | H53: 16.10 zł | M53: 7731819 | N53: Vitovolt 300 M310 PD Blackframe (dostępne do wyczerpania zapasów) | O53: 524
F54: Ogranicznik SPD DC 8.2 TYP 1+2 M | G54: 7938240 | H54: 913.00 zł | M54: 7733596 | N54: Vitovolt 300 P295, typ Half-Cut (dostępne do wyczerpania zapasów) | O54: 500
F55: Zestaw parzysty Single Fix-V Solo do blachy trapezowej | G55: 7737174 | H55: 16.10 zł
F56: Zestaw montażowy na dach typu Rąbek | G56: 7721228 | H56: 17.30 zł | M56: 7737174 | N56: Single Fix-Vario Solo | O56: 13
F57: Zestaw montażowy na dach typu KalZip | G57: 7721227 | H57: 17.30 zł
F58: Łącznik krzyżowy Rapid M8 | G58: 7533470 | H58: 17.60 zł | M58: 7737175 | N58: Dichtplatte FixPlan | O58: 18
F59: Profil nośny modułu Solo light 4,4m | G59: 7955972 | H59: 189.00 zł | M59: 7997571 | N59: Profil nośny modułu Solo light 4,3m | O59: 90
